bitfinex-derivatives/quotes_BTCF0:USTF0_20250709
["timestamp","ask_amount","ask_price","bid_price","bid_amount"]
[1752087564584,0.3798305,109620.0,109610.0,2.63988813]
[1752087566485,0.3778305,109620.0,109610.0,2.63988813]
[1752087566684,0.3778305,109620.0,109610.0,2.55787736]
[1752087566882,0.3778305,109620.0,109610.0,2.66722506]
[1752087568393,0.3778305,109620.0,109610.0,2.55787736]
[1752087569292,0.3778305,109620.0,109610.0,2.63974682]
[1752087569594,0.3778305,109620.0,109610.0,2.69432646]
[1752087572289,0.3778305,109620.0,109610.0,2.612457]
[1752087573194,0.3530705,109620.0,109610.0,2.612457]
[1752087575700,0.3530705,109620.0,109610.0,2.32914308]
[1752087575892,0.3530705,109620.0,109610.0,2.612457]
[1752087576897,0.3530705,109620.0,109610.0,2.55845286]
[1752087577094,0.3530705,109620.0,109610.0,2.64667655]
[1752087577699,0.3530705,109620.0,109610.0,2.36336263]
[1752087577893,0.3530705,109620.0,109610.0,2.64667655]
[1752087578694,0.63638442,109620.0,109610.0,2.64667655]
[1752087578893,0.65996442,109620.0,109610.0,2.22467655]
[1752087579600,0.65996442,109620.0,109610.0,2.26563594]
[1752087579894,0.3766505,109620.0,109610.0,2.26563594]
[1752087580099,0.65996442,109620.0,109610.0,2.26563594]
[1752087582702,0.3766505,109620.0,109610.0,2.26509985]
[1752087583000,0.65996442,109620.0,109610.0,2.26509985]
[1752087585303,0.65996442,109620.0,109610.0,2.21052021]
[1752087585702,0.65996442,109620.0,109610.0,2.26509237]
[1752087586600,0.65996442,109620.0,109610.0,2.32949237]
[1752087587200,0.65996442,109620.0,109610.0,2.04617845]
[1752087587508,0.65996442,109620.0,109610.0,2.32949237]
[1752087588506,0.65996442,109620.0,109610.0,2.28271484]
[1752087588799,0.94327834,109620.0,109610.0,1.75823245]
[1752087589607,0.94327834,109620.0,109610.0,1.71728244]
[1752087589802,0.65996442,109620.0,109610.0,2.00059636]
[1752087590901,0.65996442,109620.0,109610.0,0.74527636]
[1752087591207,0.65996442,109620.0,109610.0,0.78624691]
[1752087592101,0.65996442,109620.0,109610.0,0.80226691]
[1752087594310,0.65996442,109620.0,109610.0,0.79840043]
[1752087595209,1.0040505,109620.0,109610.0,0.51508651]
[1752087595510,1.28736442,109620.0,109610.0,0.79840043]
[1752087595704,1.0040505,109620.0,109610.0,0.83040043]
[1752087595908,1.0040505,109620.0,109610.0,0.86360043]
[1752087597211,0.3766505,109620.0,109610.0,0.58028651]
[1752087597412,1.0040505,109620.0,109610.0,0.76272581]
[1752087597611,1.0040505,109620.0,109610.0,1.04603973]
[1752087597813,1.0040505,109620.0,109610.0,0.86360043]
[1752087598715,1.0040505,109620.0,109610.0,0.58028651]
[1752087598914,1.0040505,109620.0,109610.0,0.86360043]
[1752087599424,0.3766505,109620.0,109610.0,1.04603973]
[1752087599615,0.9406505,109620.0,109610.0,1.04603973]
[1752087600708,0.3132505,109620.0,109610.0,1.04603973]
[1752087601009,0.2736505,109620.0,109610.0,1.04603973]
[1752087601215,0.2736505,109620.0,109610.0,1.66486295]
[1752087601413,0.228043,109620.0,109610.0,1.66486295]
[1752087601807,0.228043,109620.0,109610.0,1.66483815]
[1752087602209,0.228043,109620.0,109610.0,1.74670761]
[1752087605722,0.228043,109620.0,109610.0,1.74671145]
[1752087607217,0.228043,109620.0,109610.0,1.18008361]
[1752087607519,0.228043,109620.0,109610.0,1.74671145]
[1752087609116,0.243133,109620.0,109610.0,1.44770753]
[1752087609417,0.243133,109620.0,109610.0,1.16439361]
[1752087609608,0.243133,109620.0,109610.0,1.12350141]
[1752087609807,0.243133,109620.0,109610.0,1.40681533]
[1752087610219,0.243133,109620.0,109610.0,1.12350141]
[1752087610718,0.243133,109620.0,109610.0,1.40681533]
[1752087611818,0.243133,109620.0,109610.0,2.66145533]
[1752087615013,0.243133,109620.0,109610.0,2.94476925]
[1752087615412,0.228043,109620.0,109610.0,2.96046062]
[1752087615613,0.228043,109620.0,109610.0,2.91948199]
[1752087617720,0.228043,109620.0,109610.0,2.92248199]
[1752087618414,0.228043,109620.0,109610.0,2.96345838]
[1752087619614,0.228043,109620.0,109610.0,2.94977929]
[1752087620313,0.228043,109620.0,109610.0,2.95869258]
[1752087622518,0.228043,109620.0,109610.0,2.67537866]
[1752087622720,0.243413,109620.0,109610.0,2.66646537]
[1752087622920,0.243413,109620.0,109610.0,2.36746145]
[1752087623118,0.243413,109620.0,109610.0,2.65077537]
[1752087623314,0.243413,109620.0,109610.0,2.46833607]
[1752087623518,0.299693,109620.0,109610.0,2.63463537]
[1752087623718,0.58300692,109620.0,109610.0,2.16888215]
[1752087623917,0.86632084,109620.0,109610.0,0.90380154]
[1752087624112,0.89772084,109620.0,109610.0,0.82631546]
[1752087624317,0.89772084,109620.0,109610.0,0.54300154]
[1752087624510,0.89772084,109620.0,109610.0,0.46113208]
[1752087624823,1.24168692,109620.0,109610.0,0.744446]
[1752087625116,1.26078953,109620.0,109610.0,0.761006]
[1752087625322,1.26078953,109620.0,109610.0,0.84287546]
[1752087625522,0.63350953,109620.0,109610.0,0.97067537]
[1752087625723,0.63350953,109620.0,109610.0,1.02532357]
[1752087626624,0.63350953,109620.0,109610.0,0.84288427]
[1752087627118,0.63350953,109620.0,109610.0,1.00876357]
[1752087627320,0.35019561,109620.0,109610.0,1.00876357]
[1752087627519,0.63350953,109620.0,109610.0,1.00876357]
[1752087628127,0.28549561,109620.0,109610.0,1.00876357]
[1752087628326,0.28549561,109620.0,109610.0,0.71990661]
[1752087628327,0.91273561,109620.0,109610.0,0.71990661]
[1752087628519,1.25934953,109620.0,109610.0,0.71990661]
[1752087629124,1.25934953,109620.0,109610.0,0.73646661]
[1752087629318,1.25934953,109620.0,109610.0,0.71990661]
[1752087629526,0.91273561,109620.0,109610.0,0.73646661]
[1752087629724,1.19604953,109620.0,109610.0,0.76716661]
[1752087630820,1.19604953,109620.0,109610.0,0.70636661]
[1752087631026,1.25764953,109620.0,109610.0,0.76103618]
[1752087631618,0.97433561,109620.0,109610.0,0.76103618]
[1752087631925,1.25764953,109620.0,109610.0,0.76103618]
[1752087632136,0.97433561,109620.0,109610.0,0.47772226]
[1752087632321,0.97433561,109620.0,109610.0,0.76103618]
[1752087632624,1.25764953,109620.0,109610.0,0.76103618]
[1752087632926,1.25764953,109620.0,109610.0,0.47772226]
[1752087633122,1.25764953,109620.0,109610.0,0.76103618]
[1752087633929,1.25896953,109620.0,109610.0,0.76103618]
[1752087634531,1.25896953,109620.0,109610.0,0.80202997]
[1752087636130,1.25896953,109620.0,109610.0,0.7473604]
[1752087636630,0.63040953,109620.0,109610.0,0.7473604]
[1752087636828,0.89083561,109620.0,109610.0,0.86392997]
[1752087637027,0.89083561,109620.0,109610.0,1.04636927]
[1752087637725,0.89075561,109620.0,109610.0,0.76305535]
[1752087638030,0.89075561,109620.0,109610.0,1.04636927]
[1752087638230,0.26251561,109620.0,109610.0,1.04636927]
[1752087638432,0.54582953,109620.0,109610.0,0.86392997]
[1752087638830,0.53045953,109620.0,109610.0,0.84736997]
[1752087639029,0.57080953,109620.0,109610.0,0.86287997]
[1752087640829,0.28749561,109620.0,109610.0,0.57956605]
[1752087641837,0.57077699,109620.0,109610.0,0.57956605]
[1752087642026,0.60377699,109620.0,109610.0,0.57956605]
[1752087642227,0.63617699,109620.0,109610.0,0.52489648]
[1752087642427,0.63617699,109620.0,109610.0,0.50938648]
[1752087642832,0.35289561,109620.0,109610.0,0.50938648]
[1752087643033,0.35289561,109620.0,109610.0,0.52489648]
[1752087644126,0.35289561,109620.0,109610.0,0.80817786]
[1752087644330,0.35289561,109620.0,109610.0,0.99061716]
[1752087644625,0.31989561,109620.0,109610.0,0.99061716]
[1752087644830,0.26291561,109620.0,109610.0,0.99061716]
[1752087645740,0.24714561,109620.0,109610.0,1.06097673]
[1752087647038,0.24714561,109620.0,109610.0,1.01998294]
[1752087647933,0.26291561,109620.0,109610.0,1.01998294]
[1752087649242,0.24714561,109620.0,109610.0,0.98878294]
[1752087649541,0.24714561,109620.0,109610.0,1.01998294]
[1752087649837,0.24714561,109620.0,109610.0,1.06096192]
[1752087650142,0.24714561,109620.0,109610.0,1.01998294]
[1752087650939,0.24714561,109620.0,109610.0,0.73670156]
[1752087651142,0.24714561,109620.0,109610.0,1.00429294]
[1752087651839,0.228043,109620.0,109610.0,1.00429294]
[1752087652742,0.228043,109620.0,109610.0,1.0861624]
[1752087654541,0.228043,109620.0,109610.0,1.4469624]
[1752087654845,0.228043,109620.0,109610.0,1.31060337]
[1752087655145,0.228043,109620.0,109610.0,1.44711465]
[1752087657942,0.228043,109620.0,109610.0,1.39247283]
[1752087659241,0.228043,109620.0,109610.0,1.44709832]
[1752087659655,0.228043,109620.0,109610.0,1.40619797]
[1752087660955,0.29311675,109630.0,109620.0,0.1824227]
[1752087661147,0.27376274,109630.0,109620.0,2.54042558]
[1752087662860,0.27376274,109630.0,109620.0,2.2571442]
[1752087663261,0.00013694,109630.0,109620.0,2.54042558]
[1752087663561,0.00013694,109630.0,109620.0,2.59502883]
[1752087663562,0.18254294,109630.0,109620.0,2.59502883]
[1752087663961,0.18254294,109630.0,109620.0,2.6359531]
[1752087664871,0.00013694,109630.0,109620.0,2.6359531]
[1752087665158,0.18254294,109630.0,109620.0,2.54037225]
[1752087665767,0.18254294,109630.0,109620.0,2.59499774]
[1752087668472,0.18254294,109630.0,109620.0,2.54037225]
[1752087669769,0.18254294,109630.0,109620.0,2.59499774]
[1752087670465,0.18254294,109630.0,109620.0,2.31171636]
[1752087670768,0.19907294,109630.0,109620.0,2.28051636]
[1752087671363,0.22225294,109630.0,109620.0,2.28051636]
[1752087671669,0.19907294,109630.0,109620.0,2.28051636]
[1752087673864,0.19907294,109630.0,109620.0,2.00223498]
[1752087674064,0.56883432,109630.0,109620.0,1.97123498]
[1752087674273,0.56883432,109630.0,109620.0,1.88650949]
[1752087674470,0.56883432,109630.0,109620.0,1.94113498]
[1752087674672,0.28555294,109630.0,109620.0,1.94113498]
[1752087675171,0.28555294,109630.0,109620.0,1.89903175]
[1752087675573,0.28555294,109630.0,109620.0,1.75749327]
[1752087675763,0.56883432,109630.0,109620.0,0.68023587]
[1752087675964,0.56883432,109630.0,109620.0,1.32661587]
[1752087676165,0.28555294,109630.0,109620.0,1.31071587]
[1752087676981,0.28555294,109630.0,109620.0,1.59399725]
[1752087678375,0.28555294,109630.0,109620.0,1.31071587]
[1752087678577,0.28555294,109630.0,109620.0,1.59399725]
[1752087679174,0.28555294,109630.0,109620.0,1.55311303]
[1752087679374,0.28555294,109630.0,109620.0,1.26983165]
[1752087679676,0.28555294,109630.0,109620.0,1.55311303]
[1752087682668,0.28555294,109630.0,109620.0,0.92263303]
[1752087682872,0.28555294,109630.0,109620.0,1.56833303]
[1752087683073,0.19907294,109630.0,109620.0,1.55243303]
[1752087683274,0.18254294,109630.0,109620.0,1.91360441]
[1752087683474,0.18254294,109630.0,109620.0,1.99547387]
[1752087684272,0.18254294,109630.0,109620.0,1.94084838]
[1752087686069,0.18254294,109630.0,109620.0,1.71210141]
[1752087686668,0.19907294,109630.0,109620.0,1.69641141]
[1752087687378,0.19907294,109630.0,109620.0,1.69640696]
[1752087689178,0.19907294,109630.0,109620.0,1.641877]
[1752087689772,0.19907294,109630.0,109620.0,1.69641087]
[1752087690378,0.18254294,109630.0,109620.0,1.69641087]
[1752087691880,0.18254294,109630.0,109620.0,1.71210087]
[1752087692585,0.18254294,109630.0,109620.0,1.99538225]
[1752087694282,0.18254294,109630.0,109620.0,1.94084838]
[1752087697586,0.18254294,109630.0,109620.0,1.657567]
[1752087697789,0.18254294,109630.0,109620.0,1.94084838]
[1752087698189,0.18254294,109630.0,109620.0,1.657567]
[1752087699688,0.18254294,109630.0,109620.0,1.63028355]
[1752087700488,0.18254294,109630.0,109620.0,1.34700217]
[1752087700691,0.19757294,109630.0,109620.0,1.61459355]
[1752087702388,0.19757294,109630.0,109620.0,1.63028355]
[1752087705189,0.19757294,109630.0,109620.0,1.61459355]
[1752087705989,0.19757294,109630.0,109620.0,1.63028355]
[1752087707990,0.18254294,109630.0,109620.0,1.63028355]
[1752087708290,0.18254294,109630.0,109620.0,1.91356493]
[1752087709189,0.18254294,109630.0,109620.0,1.99543439]
[1752087709789,0.18254294,109630.0,109620.0,1.94084838]
[1752087710892,0.18254294,109630.0,109620.0,1.940647]
[1752087711287,0.18254284,109630.0,109620.0,1.940647]
[1752087711593,0.00013694,109630.0,109620.0,1.94264528]
[1752087712385,0.18254284,109630.0,109620.0,1.94264528]
[1752087712894,0.00013694,109630.0,109620.0,1.94264528]
[1752087713195,0.00013694,109630.0,109620.0,1.86077582]
[1752087713497,0.00013694,109630.0,109620.0,1.97012352]
[1752087714395,0.00013694,109630.0,109620.0,1.86077582]
[1752087715497,0.00013694,109630.0,109620.0,1.97012352]
[1752087719702,0.00013694,109630.0,109620.0,1.9427028]
[1752087720900,0.2300024,109640.0,109630.0,0.1824059]
[1752087721100,0.36457061,109650.0,109640.0,0.1823893]
[1752087721403,0.36457061,109650.0,109640.0,2.25872823]
[1752087722001,0.34521959,109650.0,109640.0,2.31334663]
[1752087722597,0.34521959,109650.0,109640.0,2.31332523]
[1752087723205,0.29962279,109650.0,109640.0,2.31332523]
[1752087723404,0.30162279,109650.0,109640.0,2.31332523]
[1752087723602,0.30162279,109650.0,109640.0,2.3223812]
[1752087724002,0.30162279,109650.0,109640.0,2.33997335]
[1752087724505,0.30362279,109650.0,109640.0,2.33997335]
[1752087725490,0.30262279,109650.0,109640.0,2.33997335]
[1752087726701,0.32198404,109650.0,109640.0,2.02499197]
[1752087726896,0.31998404,109650.0,109640.0,2.32396335]
[1752087728802,0.31998404,109650.0,109640.0,2.30827335]
[1752087728998,0.33568404,109650.0,109640.0,2.015936]
[1752087729206,0.67376542,109650.0,109640.0,1.953636]
[1752087729404,0.42178404,109650.0,109640.0,1.953636]
[1752087729602,0.42178404,109650.0,109640.0,2.23691738]
[1752087730607,0.42178404,109650.0,109640.0,1.953636]
[1752087730808,0.42178404,109650.0,109640.0,2.23691738]
[1752087731197,0.42178404,109650.0,109640.0,2.18229898]
[1752087732404,0.42178404,109650.0,109640.0,2.23691738]
[1752087732609,0.42178404,109650.0,109640.0,1.8990176]
[1752087732809,0.42178404,109650.0,109640.0,2.18229898]
[1752087733010,0.42178404,109650.0,109640.0,1.8990176]
[1752087733710,0.42178404,109650.0,109640.0,2.18229898]
[1752087735107,0.42178404,109650.0,109640.0,1.88142545]
[1752087735312,0.42178404,109650.0,109640.0,1.53946683]
[1752087735814,0.42178404,109650.0,109640.0,1.25618545]
[1752087736113,0.70506542,109650.0,109640.0,0.44303615]
[1752087736314,0.70506542,109650.0,109640.0,1.07383615]
[1752087736916,0.70506542,109650.0,109640.0,0.44303615]
[1752087737310,0.42178404,109650.0,109640.0,0.62542545]
[1752087737908,0.42178404,109650.0,109640.0,0.64089545]
[1752087738115,0.42178404,109650.0,109640.0,0.92417683]
[1752087739620,0.38318404,109650.0,109640.0,0.90870683]
[1752087739819,0.42178404,109650.0,109640.0,0.90870683]
[1752087740125,0.42178404,109650.0,109640.0,0.92417683]
[1752087740323,0.42178404,109650.0,109640.0,0.97879523]
[1752087740925,0.42178404,109650.0,109640.0,0.92417683]
[1752087741425,0.42178404,109650.0,109640.0,0.97879523]
[1752087744125,0.42178404,109650.0,109640.0,0.99448523]
[1752087744126,0.04640514,109650.0,109640.0,0.99448523]
[1752087744433,0.29948269,109660.0,109650.0,0.1823729]
[1752087744724,0.29948269,109660.0,109650.0,2.00173829]
[1752087744925,0.31518269,109660.0,109650.0,2.28501967]
[1752087745828,0.31718269,109660.0,109650.0,2.28501967]
[1752087746028,0.31918269,109660.0,109650.0,2.28501967]
[1752087746429,0.31718269,109660.0,109650.0,2.28501967]
[1752087746629,0.31618269,109660.0,109650.0,2.28501967]
[1752087748834,0.31618269,109660.0,109650.0,2.04267004]
[1752087749033,0.31618269,109660.0,109650.0,2.32595142]
[1752087749733,0.31618269,109660.0,109650.0,2.27133302]
[1752087750132,0.31618269,109660.0,109650.0,2.23040127]
[1752087752130,0.31618269,109660.0,109650.0,0.08222587]
[1752087752131,0.62236407,109660.0,109650.0,0.08222587]
[1752087752338,0.62236407,109660.0,109650.0,0.09769587]
[1752087752634,0.65236407,109660.0,109650.0,0.05676412]
[1752087752836,0.68566407,109660.0,109650.0,0.05676412]
[1752087753033,0.40238269,109660.0,109650.0,0.05676412]
[1752087754235,0.68566407,109660.0,109650.0,0.05676412]
[1752087755442,0.68566407,109660.0,109650.0,0.59993702]
[1752087755642,0.31618269,109660.0,109650.0,0.59993702]
[1752087755840,0.31618269,109660.0,109650.0,0.9447184]
[1752087759043,0.31618269,109660.0,109650.0,0.47906412]
[1752087759245,0.34054269,109660.0,109650.0,0.9443184]
[1752087759433,0.34054269,109660.0,109650.0,0.9292484]
[1752087759637,0.34054269,109660.0,109650.0,0.9443184]
[1752087759838,0.34054269,109660.0,109650.0,0.98525015]
[1752087760344,0.34054269,109660.0,109650.0,0.80287725]
[1752087760850,0.62382407,109660.0,109650.0,0.51959587]
[1752087761240,0.34054269,109660.0,109650.0,0.51959587]
[1752087761445,0.34054269,109660.0,109650.0,0.70196877]
[1752087761647,0.34054269,109660.0,109650.0,0.51959587]
[1752087762344,0.34054269,109660.0,109650.0,0.70196877]
[1752087762548,0.34054269,109660.0,109650.0,0.98525015]
[1752087762942,0.34054269,109660.0,109650.0,0.80287725]
[1752087763751,0.34054269,109660.0,109650.0,0.98525015]
[1752087765045,0.34054269,109660.0,109650.0,0.80287725]
[1752087766450,0.34054269,109660.0,109650.0,0.51959587]
[1752087766751,0.40134269,109660.0,109650.0,0.51959587]
[1752087767252,0.40134269,109660.0,109650.0,0.70196877]
[1752087767453,0.34054269,109660.0,109650.0,0.70196877]
[1752087768453,0.34054269,109660.0,109650.0,0.98525015]
[1752087768957,0.34054269,109660.0,109650.0,0.30573667]
[1752087769149,0.1823729,109650.0,109640.0,0.05475534]
[1752087769451,2.47748561,109650.0,109640.0,0.05475534]
[1752087769651,2.47748561,109650.0,109640.0,0.00013694]
[1752087770458,2.47748561,109650.0,109640.0,0.00113694]
[1752087771649,2.19420423,109650.0,109640.0,0.00113694]
[1752087771957,2.47748561,109650.0,109640.0,0.00113694]
[1752087772353,2.47748561,109650.0,109640.0,0.00313694]
[1752087772753,2.50184561,109650.0,109640.0,0.00313694]
[1752087776454,2.60688252,109650.0,109640.0,0.00313694]
[1752087777062,2.8901639,109650.0,109640.0,0.00313694]
[1752087777259,2.60688252,109650.0,109640.0,0.00313694]
[1752087777859,2.8901639,109650.0,109640.0,0.00313694]
[1752087778460,2.60688252,109650.0,109640.0,0.00313694]
[1752087779162,2.8901639,109650.0,109640.0,0.00313694]
[1752087779362,2.60688252,109650.0,109640.0,0.00313694]
[1752087780963,2.60688252,109650.0,109640.0,0.04358817]
[1752087782676,1.97344252,109650.0,109640.0,0.04358817]
[1752087782856,1.97344252,109650.0,109640.0,0.10528817]
[1752087787463,1.69016114,109650.0,109640.0,0.10528817]
[1752087787665,1.97344252,109650.0,109640.0,0.10528817]
[1752087790368,1.34076252,109650.0,109640.0,0.10528817]
[1752087790574,1.97356252,109650.0,109640.0,0.10528817]
[1752087791279,1.97356252,109650.0,109640.0,0.07448817]
[1752087791565,1.97356252,109650.0,109640.0,0.04358817]
[1752087792070,1.34076252,109650.0,109640.0,0.04358817]
[1752087792265,1.97360252,109650.0,109640.0,0.04358817]
[1752087794768,2.2568839,109650.0,109640.0,0.01815377]
[1752087794969,0.1823895,109640.0,109630.0,0.4242]
[1752087795170,0.56502438,109640.0,109630.0,0.4242]
[1752087795470,0.58756438,109640.0,109630.0,0.4242]
[1752087797377,0.58756438,109640.0,109630.0,0.4252]
[1752087798275,0.59657252,109640.0,109630.0,0.4252]
[1752087803581,0.59657252,109640.0,109630.0,0.0644]
[1752087803885,0.59657252,109640.0,109630.0,0.4252]
[1752087805284,0.6785913,109640.0,109630.0,0.4252]
[1752087806784,0.6133913,109640.0,109630.0,0.4252]
[1752087806979,0.6133913,109640.0,109630.0,0.4651026]
[1752087807588,0.6143913,109640.0,109630.0,0.4651026]
[1752087808084,0.6143913,109640.0,109630.0,0.1043026]
[1752087808085,0.9751913,109640.0,109630.0,0.1043026]
[1752087808290,0.9751913,109640.0,109630.0,0.1033026]
[1752087808291,0.9761913,109640.0,109630.0,0.1033026]
[1752087808586,0.2013616,109610.0,109600.0,0.41724313]
[1752087808776,1.13125298,109610.0,109600.0,0.37893473]
[1752087808979,0.8705116,109610.0,109600.0,0.37893473]
[1752087809186,1.15379298,109610.0,109600.0,0.56139073]
[1752087809591,0.52247298,109610.0,109600.0,0.56139073]
[1752087809791,0.2166516,109610.0,109600.0,0.90029051]
[1752087810097,0.8484516,109610.0,109600.0,0.91598051]
[1752087810390,0.8484516,109610.0,109600.0,0.86136211]
[1752087810794,0.8484516,109610.0,109600.0,0.8704759]
[1752087810992,0.8484516,109610.0,109600.0,0.8734759]
[1752087811192,0.2166516,109610.0,109600.0,0.8734759]
[1752087811390,0.8485716,109610.0,109600.0,0.8734759]
[1752087811592,0.8485716,109610.0,109600.0,0.9044759]
[1752087811789,0.8485716,109610.0,109600.0,0.61919452]
[1752087811989,0.8485716,109610.0,109600.0,0.9024759]
[1752087813293,0.8485716,109610.0,109600.0,0.61919452]
[1752087813493,0.8485716,109610.0,109600.0,0.9341759]
[1752087813891,0.8485716,109610.0,109600.0,0.65089452]
[1752087814101,0.8485716,109610.0,109600.0,0.9341759]
[1752087815102,0.8485716,109610.0,109600.0,0.90937211]
[1752087815894,0.8485716,109610.0,109600.0,0.9183938]
[1752087817395,0.92049548,109610.0,109600.0,0.9183938]
[1752087819792,0.92049548,109610.0,109600.0,0.9730122]
[1752087820297,0.28857548,109610.0,109600.0,0.9730122]
[1752087820487,0.27328548,109610.0,109600.0,0.9887022]
[1752087821299,0.28835548,109610.0,109600.0,0.9730122]
[1752087822303,0.2013616,109610.0,109600.0,1.6197822]
[1752087822603,0.2013616,109610.0,109600.0,1.70170918]
[1752087823193,0.2013616,109610.0,109600.0,1.64709078]
[1752087827405,0.2013616,109610.0,109600.0,1.64697078]
[1752087830703,0.0189222,109610.0,109600.0,1.64697078]
[1752087830903,0.2013616,109610.0,109600.0,1.64697078]
[1752087831610,0.0189222,109610.0,109600.0,1.64697078]
[1752087831810,0.2013616,109610.0,109600.0,1.64697078]
[1752087831997,0.0189222,109610.0,109600.0,1.64697078]
[1752087832499,0.2013616,109610.0,109600.0,1.64697078]
[1752087834909,0.2013616,109610.0,109600.0,2.00777078]
[1752087835610,0.2013616,109610.0,109600.0,1.37681078]
[1752087835810,0.2013616,109610.0,109600.0,2.00729078]
[1752087838014,0.2013616,109610.0,109600.0,1.37681078]
[1752087838211,0.2164316,109610.0,109600.0,0.97960242]
[1752087838414,0.2693716,109610.0,109600.0,1.53804073]
[1752087838615,0.2995716,109610.0,109600.0,1.90320952]
[1752087839717,0.2995716,109610.0,109600.0,1.95780382]
[1752087840418,0.2770316,109610.0,109600.0,1.95780382]
[1752087842419,0.2770316,109610.0,109600.0,1.96684353]
[1752087842917,0.2770316,109610.0,109600.0,1.04436244]
[1752087843123,0.2995716,109610.0,109600.0,1.95808382]
[1752087843422,0.2770316,109610.0,109600.0,1.95808382]
[1752087845216,0.2770316,109610.0,109600.0,1.96728111]
[1752087845417,0.2770316,109610.0,109600.0,1.95808382]
[1752087847222,0.2995716,109610.0,109600.0,1.95808382]
[1752087847422,0.58285298,109610.0,109600.0,0.86190644]
[1752087847830,0.2995716,109610.0,109600.0,0.86190644]
[1752087848129,0.58285298,109610.0,109600.0,0.86190644]
[1752087848622,0.58285298,109610.0,109600.0,0.87727644]
[1752087848823,0.58285298,109610.0,109600.0,1.05973234]
[1752087849129,0.2995716,109610.0,109600.0,1.05973234]
[1752087849723,1.5597716,109610.0,109600.0,1.00513804]
[1752087850118,1.5597716,109610.0,109600.0,0.82268214]
[1752087850323,1.5597716,109610.0,109600.0,1.00513804]
[1752087850629,1.84305298,109610.0,109600.0,0.82268214]
[1752087850835,1.5597716,109610.0,109600.0,0.82268214]
[1752087854049,1.5597716,109610.0,109600.0,1.00513794]
[1752087857847,1.5597716,109610.0,109600.0,1.28841932]
[1752087858049,1.5597716,109610.0,109600.0,1.00513794]
[1752087859249,1.5597716,109610.0,109600.0,0.82268214]
[1752087860042,1.83020298,109610.0,109600.0,0.80731214]
[1752087860349,1.83020298,109610.0,109600.0,0.86195799]
[1752087861049,1.83020298,109610.0,109600.0,0.78007058]
[1752087862349,1.83020298,109610.0,109600.0,0.82104641]
[1752087863348,1.83020298,109610.0,109600.0,0.82004641]
[1752087863543,1.80644298,109610.0,109600.0,0.81904641]
[1752087863743,1.83120298,109610.0,109600.0,0.81904641]
[1752087865049,1.5479216,109610.0,109600.0,1.00150211]
[1752087865250,1.83120298,109610.0,109600.0,1.00150211]
[1752087865450,1.83120298,109610.0,109600.0,0.81904641]
[1752087866751,0.57100298,109610.0,109600.0,0.81904641]
[1752087866952,1.21652298,109610.0,109600.0,0.81904641]
[1752087867146,0.2434416,109610.0,109600.0,1.28478349]
[1752087867451,0.0199222,109610.0,109600.0,2.05225507]
[1752087867652,0.0199222,109610.0,109600.0,1.99760922]
[1752087867852,0.2023613,109610.0,109600.0,1.99760922]
[1752087868240,0.2023613,109610.0,109600.0,1.71432784]
[1752087868554,0.2023613,109610.0,109600.0,1.99760922]
[1752087869452,0.2013613,109610.0,109600.0,2.00260922]
[1752087870246,0.2013613,109610.0,109600.0,1.70395784]
[1752087870446,0.2013613,109610.0,109600.0,1.98723922]
[1752087873753,0.2013613,109610.0,109600.0,1.97154922]
[1752087873953,0.2013613,109610.0,109600.0,1.98723922]
[1752087875860,0.2013613,109610.0,109600.0,1.35803922]
[1752087876058,0.2013613,109610.0,109600.0,1.98719922]
[1752087880557,0.2013613,109610.0,109600.0,1.70391784]
[1752087880857,0.2013613,109610.0,109600.0,1.98719922]
[1752087882859,0.0189222,109610.0,109600.0,1.98719922]
[1752087883257,0.2013613,109610.0,109600.0,1.98719922]
[1752087883458,0.2013613,109610.0,109600.0,1.98715922]
[1752087883762,0.0189222,109610.0,109600.0,1.90527181]
[1752087883967,0.0189222,109610.0,109600.0,2.01461951]
[1752087884766,0.18256024,109620.0,109610.0,0.1824391]
[1752087884954,0.18256024,109620.0,109610.0,1.00535579]
[1752087885358,0.00013694,109620.0,109610.0,1.00535579]
[1752087885665,0.18255934,109620.0,109610.0,1.00535579]
[1752087885859,0.18255934,109620.0,109610.0,1.00635579]
[1752087886365,0.00013694,109620.0,109610.0,1.00635579]
[1752087886564,0.18255934,109620.0,109610.0,1.00735579]
[1752087886765,0.18255934,109620.0,109610.0,0.92552048]
[1752087887367,0.18255934,109620.0,109610.0,1.00730399]
[1752087889769,0.18255934,109620.0,109610.0,1.06180923]
[1752087890270,0.18255934,109620.0,109610.0,1.07881522]
[1752087890769,0.18255934,109620.0,109610.0,0.79553384]
[1752087890970,0.18255934,109620.0,109610.0,1.07881522]
[1752087892170,0.18255934,109620.0,109610.0,0.79553384]
[1752087892371,0.18255934,109620.0,109610.0,1.07881522]
[1752087893465,0.19790934,109620.0,109610.0,1.04751522]
[1752087893665,0.26300934,109620.0,109610.0,1.67651522]
[1752087895875,0.26300934,109620.0,109610.0,1.67647522]
[1752087897369,0.26300934,109620.0,109610.0,1.62196998]
[1752087897569,0.26300934,109620.0,109610.0,1.67650109]
[1752087898280,0.26300934,109620.0,109610.0,1.62196998]
[1752087899781,0.26300934,109620.0,109610.0,1.54018647]
[1752087903286,0.26300934,109620.0,109610.0,1.64953417]
[1752087906882,0.26300934,109620.0,109610.0,1.6494463]
[1752087912297,0.24765934,109620.0,109610.0,1.6651363]
[1752087912688,0.00013694,109620.0,109610.0,1.94832981]
[1752087913594,0.18255934,109620.0,109610.0,1.94832981]
[1752087913996,0.19901934,109620.0,109610.0,1.6494463]
[1752087914189,0.19901934,109620.0,109610.0,1.36625279]
[1752087914390,0.19901934,109620.0,109610.0,1.6494463]
[1752087914594,0.19901934,109620.0,109610.0,1.5400986]
[1752087914989,0.22961934,109620.0,109610.0,1.5400986]
[1752087915996,0.22961934,109620.0,109610.0,1.5070186]
[1752087916189,0.54351285,109620.0,109610.0,1.5070186]
[1752087916992,0.26031934,109620.0,109610.0,1.5070186]
[1752087917398,0.54351285,109620.0,109610.0,1.4743186]
[1752087917695,0.56764285,109620.0,109610.0,1.19112509]
[1752087917996,0.56764285,109620.0,109610.0,1.4743186]
[1752087919097,0.56764285,109620.0,109610.0,0.8454386]
[1752087919305,0.85083636,109620.0,109610.0,0.46171859]
[1752087920098,0.85083636,109620.0,109610.0,0.43443156]
[1752087922905,0.56776876,109620.0,109610.0,0.43443156]
[1752087923592,0.56776876,109620.0,109610.0,0.43343156]
[1752087923794,0.56876876,109620.0,109610.0,0.43243156]
[1752087924607,0.56876876,109620.0,109610.0,0.47335936]
[1752087925215,0.56876876,109620.0,109610.0,0.41873379]
[1752087930116,0.28544934,109620.0,109610.0,0.41873379]
[1752087930315,0.56876876,109620.0,109610.0,0.41873379]
[1752087931321,0.56876876,109620.0,109610.0,0.37780599]
[1752087935013,0.1824392,109610.0,109600.0,0.45815187]
[1752087935209,1.19950862,109610.0,109600.0,0.45815187]
[1752087935417,1.19950862,109610.0,109600.0,0.4035263]
[1752087935925,1.19950862,109610.0,109600.0,0.6025621]
[1752087936725,1.19950862,109610.0,109600.0,0.6035621]
[1752087936924,1.19950862,109610.0,109600.0,0.6045621]
[1752087937719,1.19950862,109610.0,109600.0,0.6035621]
[1752087937924,1.20050862,109610.0,109600.0,0.6025621]